bitfinex-derivatives/quotes_ETHF0:USTF0_20250308
["timestamp","ask_amount","ask_price","bid_price","bid_amount"]
[1741455077687,3.2078,2212.5,2211.7,1.233]
[1741455077896,4.904,2212.4,2212.2,0.00678533]
[1741455078188,2.395,2212.3,2212.2,0.00678533]
[1741455078689,6.395,2212.3,2212.2,0.00678533]
[1741455078885,2.395,2212.3,2212.2,0.00678533]
[1741455079083,2.395,2212.3,2212.2,0.73024533]
[1741455079293,2.395,2212.3,2212.2,0.00678533]
[1741455080190,4.904,2212.4,2212.2,0.00678533]
[1741455080492,7.298,2212.4,2212.2,0.00678533]
[1741455080990,7.298,2212.4,2212.2,0.73022533]
[1741455081491,3.2078,2212.3,2212.2,0.73024533]
[1741455081693,1.3394,2212.9,2212.4,0.72337]
[1741455081694,4.904,2212.8,2212.4,0.72337]
[1741455081893,9.4512,2212.9,2212.3,3.2078]
[1741455082192,6.2434,2212.9,2212.7,0.72329]
[1741455082389,6.2434,2212.9,2212.3,3.2078]
[1741455082390,1.3394,2212.9,2212.3,3.2078]
[1741455082690,8.5712,2213.0,2212.6,0.72332]
[1741455082890,3.2078,2212.9,2212.3,3.2078]
[1741455083083,3.2078,2212.9,2212.5,0.72335]
[1741455083291,3.2078,2212.9,2212.3,3.2078]
[1741455083588,3.2078,2212.6,2212.3,0.72343]
[1741455083782,5.6008,2212.6,2212.3,0.72343]
[1741455084191,5.6008,2212.6,2212.2,0.00678533]
[1741455084192,5.6008,2212.6,2212.2,0.73022533]
[1741455084393,5.6008,2212.6,2212.3,0.72341]
[1741455085334,6.1782,2213.0,2212.2,0.00678533]
[1741455085335,3.2078,2212.9,2212.2,0.00678533]
[1741455085525,2.393,2212.7,2212.6,0.72333]
[1741455086120,2.393,2212.7,2212.5,0.72335]
[1741455086315,2.393,2212.7,2212.6,0.72333]
[1741455086618,2.393,2212.7,2212.5,0.72336]
[1741455086914,2.393,2212.7,2212.6,0.72333]
[1741455087415,6.1782,2213.0,2212.6,3.2078]
[1741455087620,3.6672,2213.0,2212.3,4.4468]
[1741455087813,3.6672,2213.0,2212.7,0.72329]
[1741455088013,3.2078,2212.9,2212.3,4.4468]
[1741455088209,3.2078,2212.9,2212.5,0.72335]
[1741455088508,3.2078,2212.9,2212.6,0.72332]
[1741455088914,3.2078,2212.9,2212.3,4.4468]
[1741455089110,4.904,2213.2,2213.1,0.72317]
[1741455089412,1.3394,2213.4,2212.6,3.2078]
[1741455089413,6.2434,2213.4,2212.6,3.2078]
[1741455089620,6.2434,2213.4,2213.0,0.72318]
[1741455089802,6.2434,2213.4,2213.1,0.72316]
[1741455090003,8.5818,2213.5,2213.4,0.72307]
[1741455090004,3.2078,2213.5,2213.4,0.72307]
[1741455090217,2.392,2214.4,2213.4,3.54952185]
[1741455090513,7.296,2214.8,2214.3,3.2078]
[1741455090710,4.904,2214.7,2214.3,3.2078]
[1741455091018,8.1118,2214.7,2214.0,3.2078]
[1741455091222,4.904,2214.6,2214.4,0.8365]
[1741455091415,4.904,2214.5,2214.4,0.8365]
[1741455091621,5.62671,2214.5,2214.4,0.8365]
[1741455091803,9.62671,2214.5,2214.4,0.8365]
[1741455092104,4.904,2214.5,2214.4,0.8365]
[1741455092316,2.391,2214.7,2214.4,1.55922]
[1741455092511,3.2078,2215.6,2214.6,3.2078]
[1741455092713,7.295,2215.5,2214.9,3.2078]
[1741455092917,2.391,2215.5,2214.9,3.21458533]
[1741455093108,0.72242,2215.4,2214.9,3.21458533]
[1741455093312,0.72254,2215.0,2214.9,0.00678533]
[1741455093618,0.72263,2214.8,2214.4,0.8365]
[1741455093804,8.1118,2214.9,2214.4,0.8365]
[1741455094101,0.72265,2214.7,2214.4,0.8365]
[1741455094303,2.391,2214.6,2214.4,0.8365]
[1741455094600,0.72271,2214.5,2214.4,0.8365]
[1741455094799,6.32149,2214.6,2214.4,0.8365]
[1741455094997,0.00678533,2214.7,2214.6,0.72268]
[1741455095199,0.00678533,2214.7,2214.5,3.2078]
[1741455095400,0.00678533,2214.7,2214.6,0.72268]
[1741455095700,0.00678533,2214.7,2214.6,1.3382]
[1741455096509,0.00678533,2214.7,2214.5,3.2078]
[1741455097000,0.72271,2214.6,2214.4,1.9654]
[1741455097305,0.72271,2214.5,2214.4,1.9654]
[1741455097699,3.93051,2214.5,2214.4,1.9654]
[1741455097896,8.83451,2214.5,2214.3,0.00678533]
[1741455098100,4.19786,2214.4,2213.3,3.2078]
[1741455098303,3.2078,2214.2,2213.6,3.2078]
[1741455098504,4.904,2214.2,2213.6,3.2078]
[1741455098698,8.1118,2214.2,2213.6,3.2078]
[1741455098900,8.1118,2214.2,2213.6,3.9308]
[1741455099195,8.1118,2214.2,2213.9,0.72287]
[1741455099408,2.981,2214.3,2213.7,0.00678533]
[1741455099409,7.294,2214.6,2214.0,3.2078]
[1741455099707,0.72273,2214.5,2214.0,3.2078]
[1741455099900,0.72273,2214.5,2214.0,3.93067]
[1741455100217,2.39,2214.6,2214.3,3.2078]
[1741455100401,0.00678533,2214.7,2214.3,3.2078]
[1741455100600,0.00678533,2214.7,2214.6,3.93048]
[1741455100801,0.00678533,2214.7,2214.6,3.2078]
[1741455101000,0.00678533,2214.7,2214.6,3.93048]
[1741455101200,3.2078,2215.8,2214.6,7.2078]
[1741455101502,3.2078,2215.8,2215.1,3.2078]
[1741455101701,0.7223,2215.8,2215.2,1.251]
[1741455102101,3.2078,2215.8,2215.1,3.2078]
[1741455102308,0.72238,2215.5,2215.3,0.00678533]
[1741455102500,0.72241,2215.4,2215.3,0.00678533]
[1741455102706,3.11238,2215.5,2215.3,0.00678533]
[1741455102907,0.72241,2215.4,2215.3,0.00678533]
[1741455103212,2.39,2215.5,2215.3,0.00678533]
[1741455103607,0.00678533,2215.7,2215.5,0.72235]
[1741455103811,0.00678533,2215.7,2215.5,0.72238]
[1741455104308,0.00678533,2215.7,2215.4,4.467]
[1741455104703,0.00678533,2215.7,2215.4,1.2592]
[1741455105411,0.00678533,2215.7,2215.4,1.98161]
[1741455105608,0.00678533,2215.7,2215.4,1.2592]
[1741455106108,3.2078,2216.1,2215.4,3.6482]
[1741455106409,4.904,2216.5,2215.8,3.2078]
[1741455106610,5.62603,2216.6,2216.1,3.2078]
[1741455107007,0.72206,2216.5,2216.1,3.2078]
[1741455107208,6.1888,2216.8,2216.1,3.2078]
[1741455107910,0.72209,2216.4,2216.1,3.2078]
[1741455108114,3.2078,2216.5,2216.1,3.2078]
[1741455108506,2.389,2216.7,2216.1,3.2078]
[1741455108707,3.2078,2216.5,2216.1,3.2078]
[1741455108907,0.72215,2216.3,2216.1,3.2078]
[1741455109215,4.904,2216.7,2216.1,3.2078]
[1741455109409,12.3465,2216.8,2216.1,3.2078]
[1741455109804,3.2078,2216.5,2216.1,3.2078]
[1741455110006,4.904,2216.8,2216.1,3.2078]
[1741455110203,0.72209,2216.4,2216.3,3.2078]
[1741455110409,4.904,2216.7,2216.3,3.2078]
[1741455110608,0.72209,2216.4,2216.3,3.2078]
[1741455111008,4.904,2216.7,2216.3,3.2078]
[1741455111204,0.72215,2216.2,2216.1,0.00676987]
[1741455111709,7.292,2216.5,2216.1,0.00676987]
[1741455111910,0.72215,2216.2,2216.1,0.00676987]
[1741455112110,7.292,2216.5,2216.1,0.00676987]
[1741455112314,0.72214,2216.3,2216.1,0.00676987]
[1741455112720,0.72215,2216.2,2216.1,0.00676987]
[1741455113219,4.0,2216.2,2215.7,3.2078]
[1741455113421,0.72227,2215.9,2215.5,1.3287]
[1741455113713,3.2078,2215.7,2215.4,3.2078]
[1741455113921,0.72245,2215.3,2215.1,1.2999]
[1741455114417,0.72251,2215.1,2215.0,0.00676987]
[1741455114913,12.1118,2215.1,2214.4,3.2078]
[1741455115120,0.72273,2214.5,2214.3,1.2999]
[1741455115319,0.72274,2214.4,2214.3,1.2999]
[1741455115614,2.388,2214.5,2214.2,1.129]
[1741455115819,0.72277,2214.3,2214.2,1.129]
[1741455116011,0.72275,2214.4,2214.2,1.129]
[1741455116320,5.62677,2214.3,2214.2,1.129]
[1741455117119,0.72289,2214.0,2213.7,3.2078]
[1741455117510,2.388,2214.1,2213.7,3.2078]
[1741455117814,0.72291,2213.9,2213.7,3.2078]
[1741455118217,0.72294,2213.8,2213.7,3.2078]
[1741455119013,4.904,2213.8,2213.6,0.00676987]
[1741455119215,3.11097,2213.7,2213.6,0.00676987]
[1741455119415,8.01497,2213.7,2213.6,0.00676987]
[1741455119718,8.01497,2213.7,2213.0,3.2078]
[1741455119719,11.292,2213.7,2213.0,3.2078]
[1741455120017,0.72326,2212.8,2212.3,3.2078]
[1741455120216,0.72331,2212.7,2212.3,3.2078]
[1741455120417,3.11127,2212.8,2212.3,3.4423]
[1741455120615,2.388,2212.8,2212.3,3.4423]
[1741455120821,0.72331,2212.7,2212.3,3.44906987]
[1741455121215,0.72334,2212.6,2212.3,3.44906987]
[1741455121512,2.39476987,2212.8,2212.3,3.44906987]
[1741455121712,0.72333,2212.6,2212.3,3.44906987]
[1741455121919,0.72331,2212.7,2212.3,3.44906987]
[1741455122117,2.388,2212.7,2212.6,3.2078]
[1741455123016,2.388,2212.7,2212.3,3.44906987]
[1741455123214,0.72334,2212.6,2212.3,3.44906987]
[1741455123416,3.11131,2212.7,2212.3,3.44906987]
[1741455123617,2.388,2212.7,2212.3,3.44906987]
[1741455123818,0.72335,2212.6,2212.3,3.44906987]
[1741455124025,2.388,2212.7,2212.3,3.44906987]
[1741455125011,0.72339,2212.4,2212.3,0.24126987]
[1741455127124,8.83519,2212.4,2212.3,9.87e-06]
[1741455127319,12.83519,2212.4,2212.3,9.87e-06]
[1741455127522,15.81619,2212.4,2212.3,9.87e-06]
[1741455129018,2.981,2212.4,2212.3,9.87e-06]
[1741455129225,2.39676987,2212.8,2212.3,9.87e-06]
[1741455129423,0.00676987,2212.8,2212.5,3.2078]
[1741455130227,0.00676987,2212.8,2212.5,3.93114]
[1741455130522,0.00676987,2212.8,2212.7,0.7233]
[1741455130728,0.72309,2213.4,2212.8,0.72325]
[1741455130920,10.5018,2213.5,2212.9,3.2078]
[1741455131122,0.72321,2213.0,2212.6,4.5464]
[1741455131523,0.72323,2213.0,2212.6,4.5464]
[1741455131719,3.2078,2212.8,2212.3,9.87e-06]
[1741455131927,0.72339,2212.4,2212.3,9.87e-06]
[1741455132225,0.72369,2211.5,2211.4,3.2078]
[1741455132425,3.11369,2211.5,2211.4,3.2078]
[1741455132628,0.72379,2211.2,2211.1,3.2078]
[1741455132829,2.39,2211.5,2211.1,3.2078]
[1741455132830,0.72375,2211.4,2211.1,3.2078]
[1741455133021,0.72379,2211.2,2211.1,3.2078]
[1741455133723,0.72375,2211.3,2211.1,3.2078]
[1741455133927,0.72375,2211.3,2211.0,0.00676987]
[1741455134126,4.904,2211.4,2211.0,0.00676987]
[1741455134330,5.62773,2211.4,2211.0,0.00676987]
[1741455134630,0.72375,2211.3,2211.1,3.2078]
[1741455134830,0.72377,2211.3,2211.1,3.2078]
[1741455135227,4.904,2211.4,2211.1,3.2078]
[1741455135426,4.18023,2211.4,2211.1,3.2078]
[1741455135922,9.55123,2212.5,2211.2,2.39]
[1741455136121,2.39,2212.5,2211.8,3.2078]
[1741455136329,0.72352,2212.1,2211.5,3.2078]
[1741455136529,0.72358,2211.9,2211.5,3.2078]
[1741455136733,6.57123,2212.0,2211.4,1.2529]
[1741455136928,6.57123,2212.0,2211.5,3.2078]
[1741455137231,0.00676987,2211.9,2211.5,3.2078]
[1741455137419,0.00676987,2211.9,2211.5,3.93147]
[1741455137734,0.00676987,2211.9,2211.5,3.2078]
[1741455137931,0.00676987,2211.9,2211.5,3.93147]
[1741455138125,0.00676987,2211.9,2211.6,0.72365]
[1741455138427,0.00676987,2211.9,2211.6,0.72363]
[1741455138629,0.00676987,2211.9,2211.5,3.2078]
[1741455138828,7.38803,2212.5,2212.0,0.72351]
[1741455139022,0.7234,2212.4,2211.8,3.2078]
[1741455139329,5.5988,2212.5,2211.8,3.2078]
[1741455139628,3.2078,2212.2,2211.8,3.2078]
[1741455139827,0.72352,2212.0,2211.5,3.2078]
[1741455140021,6.57123,2212.1,2211.6,0.72364]
[1741455140220,7.29474,2212.1,2211.5,3.93147]
[1741455140734,6.57123,2212.1,2211.6,0.72364]
[1741455141028,6.57123,2212.1,2211.5,3.93147]
[1741455141029,7.29474,2212.1,2211.5,3.93147]
[1741455141436,0.72353,2212.0,2211.5,3.2078]
[1741455141633,9.77903,2212.1,2211.5,3.2078]
[1741455141634,10.50253,2212.1,2211.5,3.93147]
[1741455142136,0.00676987,2212.2,2211.8,3.2078]
[1741455142329,0.00676987,2212.2,2211.8,3.93136]
[1741455142633,0.00676987,2212.2,2211.8,3.2078]
[1741455142832,0.73023987,2212.2,2211.8,3.2078]
[1741455143128,0.00676987,2212.2,2212.1,0.72349]
[1741455143329,0.00676987,2212.2,2212.0,0.7235]
[1741455143725,0.00676987,2212.2,2212.1,3.93129]
[1741455143925,0.00676987,2212.2,2212.1,3.2078]
[1741455144722,0.00676987,2212.2,2212.1,3.93129]
[1741455144926,0.00676987,2212.2,2212.1,3.2078]
[1741455145227,0.00676987,2212.2,2212.1,3.93129]
[1741455145423,5.45073,2212.9,2212.1,7.2078]
[1741455145424,2.391,2212.9,2212.1,7.2078]
[1741455145732,21.56422,2213.0,2212.4,3.93118]
[1741455146631,0.00671832,2212.9,2212.5,0.00676987]
[1741455146837,0.00671832,2212.9,2212.6,0.72331]
[1741455147535,0.00671832,2212.9,2212.7,3.2078]
[1741455147730,0.00671832,2212.9,2212.7,3.93107]
[1741455147927,0.00671832,2212.9,2212.7,3.2078]
[1741455148128,0.00671832,2212.9,2212.7,3.93107]
[1741455148342,2.391,2213.2,2212.7,7.2078]
[1741455148534,5.5988,2213.8,2213.1,3.2078]
[1741455148839,5.5988,2213.8,2213.3,0.72309]
[1741455149536,5.5988,2213.8,2213.3,0.7231]
[1741455149839,5.5988,2213.8,2213.2,3.2078]
[1741455150039,5.5988,2213.8,2213.5,0.72303]
[1741455150333,5.5988,2213.8,2213.7,0.72297]
[1741455150334,3.2078,2213.8,2213.7,0.72297]
[1741455150838,3.2078,2213.8,2213.5,3.2078]
[1741455151027,3.2078,2213.8,2213.5,3.93082]
[1741455151227,3.2078,2213.8,2213.5,3.2078]
[1741455151833,9.55123,2213.7,2212.5,0.00676987]
[1741455152131,3.2078,2212.6,2211.4,4.4248]
[1741455152331,3.2078,2212.1,2211.4,5.6844]
[1741455152531,5.5978,2212.1,2211.4,6.4081]
[1741455152936,4.18023,2212.0,2211.4,5.6844]
[1741455153241,0.00676987,2211.9,2211.5,0.00676987]
[1741455153538,3.2078,2211.7,2211.5,0.00676987]
[1741455153734,2.39,2211.6,2211.5,0.00676987]
[1741455153934,6.57023,2211.6,2211.5,0.00676987]
[1741455155238,4.18023,2211.6,2211.5,0.00676987]
[1741455155439,4.18023,2211.6,2211.5,0.73045987]
[1741455155641,4.18023,2211.6,2211.5,0.00676987]
[1741455155843,6.57223,2211.6,2211.5,0.00676987]
[1741455157535,4.18023,2211.6,2211.5,0.00676987]
[1741455158440,4.18023,2211.6,2211.5,0.73045987]
[1741455158938,0.00676987,2211.9,2211.5,0.00676987]
[1741455159136,0.00676987,2211.9,2211.6,4.5018]
[1741455159337,0.00676987,2211.9,2211.6,1.294]
[1741455160643,0.00676987,2211.9,2211.6,2.01763]
[1741455161040,0.00676987,2211.9,2211.6,1.294]
[1741455162250,0.00676987,2211.9,2211.5,0.00676987]
[1741455162440,3.2078,2211.7,2211.5,0.00676987]
[1741455162640,6.57123,2211.6,2211.5,0.00676987]
[1741455162842,6.57123,2211.6,2211.2,0.30733]
[1741455163148,3.2078,2211.3,2211.2,0.20507002]
[1741455163356,7.38803,2211.3,2211.2,0.20507002]
[1741455163544,11.38803,2211.3,2211.2,0.20507002]
[1741455163752,11.38803,2211.3,2210.6,3.2078]
[1741455164045,7.38803,2211.2,2210.7,0.00676987]
[1741455164255,2.391,2211.1,2210.7,0.73069987]
[1741455164439,2.391,2211.4,2210.7,0.73071987]
[1741455164643,4.18023,2211.1,2210.7,0.00676987]
[1741455164844,4.18023,2211.1,2210.7,0.73068987]
[1741455165051,4.18023,2211.1,2210.7,0.00676987]
[1741455165347,3.11487,2211.0,2210.7,0.00676987]
[1741455165542,2.391,2211.0,2210.7,0.00676987]
[1741455166044,2.391,2211.0,2210.7,0.73071987]
[1741455166242,2.391,2211.0,2210.7,0.00676987]
[1741455168240,2.391,2211.0,2210.7,0.73069987]
[1741455168545,6.57123,2211.2,2210.9,0.72385]
[1741455168751,3.2078,2211.3,2210.7,0.00676987]
[1741455168948,5.5988,2211.3,2210.8,0.7239]
[1741455169144,5.5988,2211.3,2210.7,0.73070987]
[1741455169344,5.5988,2211.3,2210.7,0.00676987]
[1741455169550,9.77903,2211.3,2210.7,0.00676987]
[1741455170551,3.2078,2211.0,2210.7,0.00676987]
[1741455170747,0.72392,2210.8,2210.7,0.00676987]
[1741455170948,4.90415,2210.8,2210.7,0.00676987]
[1741455171149,8.90415,2210.8,2210.7,0.00676987]
[1741455171343,4.90415,2210.8,2210.7,0.00676987]
[1741455171547,4.18023,2210.8,2210.7,0.00676987]
[1741455172056,4.18023,2211.2,2210.8,0.72392]
[1741455172347,4.18023,2211.2,2210.7,0.00676987]
[1741455172554,4.18023,2211.2,2210.9,0.72387]
[1741455172941,4.18023,2211.2,2210.7,0.00676987]
[1741455172942,7.38803,2211.7,2210.8,3.2078]
[1741455173149,2.392,2211.6,2211.1,0.7238]
[1741455173350,3.2078,2211.7,2211.1,3.2078]
[1741455173545,3.2078,2211.7,2211.2,2.5686]
[1741455173750,3.2078,2211.7,2211.2,3.29238]
[1741455173946,2.392,2212.0,2211.2,2.5686]
[1741455174259,2.392,2212.0,2211.2,3.29237]
[1741455174554,2.392,2212.0,2211.3,0.72373]
[1741455174754,4.18699987,2211.9,2211.2,3.29237]
[1741455174958,6.57899987,2211.9,2211.2,2.5686]
[1741455175250,6.57899987,2211.9,2211.4,3.93151]
[1741455175752,6.57899987,2211.9,2211.5,0.72367]
[1741455175954,6.57899987,2211.9,2211.5,0.72366]
[1741455176249,6.57899987,2211.9,2211.6,0.72365]
[1741455176659,6.57899987,2211.9,2211.5,0.72367]
[1741455176857,2.39876987,2211.9,2211.4,3.2078]
[1741455177058,0.00676987,2211.9,2211.8,0.72359]
[1741455177249,0.00676987,2211.9,2211.7,0.72361]
[1741455177754,0.00676987,2211.9,2211.6,0.72364]
[1741455177951,0.00676987,2211.9,2211.4,3.2078]
[1741455178151,0.00676987,2211.9,2211.6,0.72364]
[1741455178360,0.00676987,2211.9,2211.7,0.72362]
[1741455178850,0.00676987,2211.9,2211.4,3.2078]
[1741455179154,3.21456987,2211.9,2211.4,3.2078]
[1741455179353,2.391,2211.8,2211.4,3.2078]
[1741455179654,6.57123,2211.8,2211.4,3.2078]
[1741455180850,4.18023,2211.8,2211.4,3.2078]
[1741455181051,0.00676987,2211.9,2211.8,0.72359]
[1741455181657,3.2078,2212.2,2212.1,0.72349]
[1741455181852,3.2078,2212.2,2212.0,0.72351]
[1741455182059,3.2078,2212.2,2212.1,0.72349]
[1741455182254,0.94908453,2212.6,2212.5,0.72336]
[1741455182655,2.391,2213.0,2212.7,0.72329]
[1741455182857,0.00676987,2212.8,2212.7,3.9311]
[1741455183163,2.391,2213.2,2212.9,0.72321]
[1741455183360,2.391,2213.2,2212.8,0.72325]
[1741455183556,1.2536,2213.4,2212.8,0.72325]
[1741455183958,1.2536,2213.4,2212.7,3.2078]
[1741455184154,9.77903,2213.5,2213.1,3.2078]
[1741455184353,9.77903,2213.5,2212.9,0.72321]
[1741455184658,9.77903,2213.5,2212.8,3.2078]
[1741455186356,3.2078,2213.2,2212.8,3.2078]
[1741455186563,3.2078,2213.2,2212.5,5.25735]
[1741455186857,0.72374681,2213.4,2212.6,0.72333]
[1741455187057,0.72374681,2213.4,2212.9,0.72321]
[1741455187262,0.9444897,2213.4,2213.0,0.72318]
[1741455187457,6.57123,2213.5,2212.9,3.2078]
[1741455187660,6.57123,2213.5,2212.9,3.93101]
[1741455187964,6.57123,2213.5,2213.1,0.72314]
[1741455188460,6.57123,2213.5,2212.9,3.2078]
[1741455188461,6.57123,2213.5,2213.2,3.2078]
[1741455188662,2.391,2213.5,2213.2,3.2078]
[1741455188962,4.18023,2213.9,2213.2,3.2078]
[1741455189159,2.39,2213.8,2213.3,2.09858]
[1741455189353,2.39,2213.8,2213.3,1.3755]
[1741455189557,2.39,2213.8,2213.3,1.38226987]
[1741455190056,3.2078,2213.4,2213.3,0.00676987]
[1741455190455,2.39,2213.4,2213.3,0.00676987]
[1741455191957,4.18023,2213.7,2213.3,0.00676987]
[1741455192161,2.39,2213.6,2213.3,0.72983987]
[1741455192366,2.39,2213.6,2213.3,0.00676987]
[1741455192564,4.18023,2213.7,2213.5,0.72303]
[1741455192757,4.18023,2213.7,2213.4,2.01345]
[1741455193060,4.18023,2213.7,2213.5,0.72303]
[1741455193474,3.2078,2213.8,2213.4,1.2904]
[1741455193763,2.389,2214.4,2213.7,3.2078]
[1741455194065,2.389,2214.4,2213.8,0.72293]
[1741455194269,2.389,2214.4,2213.8,0.72294]
[1741455194459,2.389,2214.4,2213.7,3.2078]
[1741455194658,2.389,2214.4,2214.0,3.2078]
[1741455195667,3.2078,2214.3,2213.7,3.2078]
[1741455195870,2.389,2214.4,2213.9,0.7229]
[1741455196269,2.389,2214.4,2214.0,3.2078]
[1741455197369,3.2078,2214.6,2214.0,3.2078]
[1741455197569,2.389,2214.5,2214.0,3.2078]
[1741455198066,5.5968,2214.5,2214.0,3.2078]
[1741455198666,3.2078,2214.1,2213.7,3.2078]
[1741455198857,2.389,2214.1,2213.7,3.2078]
[1741455199061,3.2078,2214.0,2213.3,0.00676987]
[1741455199261,3.2078,2213.7,2213.3,0.00676987]
[1741455199561,2.389,2213.6,2213.3,0.00676987]
[1741455199960,3.2078,2213.4,2213.3,0.00676987]
[1741455200372,2.389,2213.7,2213.3,0.00676987]
[1741455200670,2.389,2213.7,2213.3,0.72984987]
[1741455200971,2.388,2214.1,2213.4,0.72307]
[1741455201265,3.2078,2213.7,2213.3,1.29976987]
[1741455201570,5.5958,2213.7,2213.3,1.29976987]
[1741455201773,2.388,2213.7,2213.3,2.02286987]
[1741455201976,3.7206,2214.0,2213.5,3.2078]
[1741455202263,2.388,2214.3,2213.8,3.2078]
[1741455202471,2.388,2214.3,2213.5,3.2078]
[1741455202768,2.388,2214.3,2213.9,3.2078]
[1741455203473,2.388,2214.3,2213.7,3.2078]
[1741455204267,3.2078,2214.2,2213.4,1.3488]
[1741455204467,3.2078,2214.2,2213.4,2.07185]
[1741455204669,3.2078,2214.2,2213.4,1.3488]
[1741455204972,3.2078,2214.2,2213.6,3.2078]
[1741455205172,7.38803,2214.5,2213.6,3.2078]
[1741455205373,2.388,2214.4,2213.6,3.93078]
[1741455205572,2.388,2214.4,2213.7,0.72294]
[1741455206072,2.388,2214.4,2213.8,0.72293]
[1741455206274,2.388,2214.4,2213.6,3.2078]
[1741455206471,2.388,2214.4,2213.9,3.2078]
[1741455207069,2.388,2214.4,2213.9,3.93069]
[1741455207263,2.388,2214.4,2213.9,3.2078]
[1741455207468,2.388,2214.4,2213.7,0.72295]
[1741455207677,2.388,2214.4,2213.5,3.2078]
[1741455208175,2.388,2214.4,2213.9,3.2078]
[1741455208470,3.2078,2214.5,2213.9,3.2078]
[1741455208672,2.388,2214.8,2214.2,3.2078]
[1741455208869,2.388,2214.8,2214.3,2.08956]
[1741455209072,2.388,2214.8,2214.3,2.08957]
[1741455209277,2.388,2214.8,2214.5,0.72269]
[1741455209471,27.18223,2215.0,2214.3,1.3668]
[1741455209472,3.2078,2215.0,2214.3,1.3668]
[1741455209673,4.72e-06,2214.9,2214.8,3.93041]
[1741455209874,2.388,2215.7,2215.4,0.72239]
[1741455210079,2.388,2215.7,2214.7,1.80658]
[1741455210080,2.388,2215.7,2215.3,3.93022]
[1741455210268,6.56823,2215.9,2215.5,0.72236]
[1741455210580,6.56823,2215.9,2215.3,3.93023]
[1741455210773,6.56823,2215.9,2215.5,0.72237]
[1741455210975,6.56823,2215.9,2215.3,3.2078]
[1741455210976,2.388,2215.9,2215.3,3.2078]
[1741455211278,2.388,2215.9,2215.6,3.2078]
[1741455211474,3.2078,2216.0,2215.6,3.2078]
[1741455211781,3.2078,2216.0,2215.6,3.93014]
[1741455211981,3.2078,2216.0,2215.7,0.72231]
[1741455212281,3.2078,2216.0,2215.6,3.2078]
[1741455212784,3.2078,2216.0,2215.8,0.72227]
[1741455213171,3.2078,2216.0,2215.7,1.3452]
[1741455213369,3.2078,2216.0,2215.6,3.93014]
[1741455213771,7.33363,2217.1,2215.6,3.93014]
[1741455213772,7.16123,2217.0,2215.9,3.2078]
[1741455213979,9.54823,2217.0,2216.2,3.2078]
[1741455214183,9.54823,2217.0,2216.0,1.3452]
[1741455214184,3.2078,2216.7,2216.0,1.3452]
[1741455214683,2.387,2216.6,2216.0,2.0674]
[1741455214894,2.387,2216.6,2216.0,1.3452]
[1741455215185,3.2078,2216.7,2216.0,1.3452]
[1741455215382,2.387,2216.7,2216.3,0.7221]
[1741455215583,13.47794,2217.0,2216.1,3.2078]
[1741455215779,13.47794,2217.0,2216.3,0.7221]
[1741455216490,0.72196,2216.8,2216.2,0.72214]
[1741455216685,0.72195,2216.9,2216.2,0.72214]
[1741455216886,12.75603,2217.0,2216.3,0.72211]
[1741455217087,13.47793,2217.0,2216.3,0.72211]
[1741455217282,13.47793,2217.0,2216.4,0.72207]
[1741455217283,9.54823,2217.0,2216.4,0.72207]
[1741455217486,4.18023,2216.9,2216.5,0.72205]
[1741455217684,3.2078,2216.7,2215.8,3.93006]
[1741455217987,3.2078,2216.3,2215.8,3.2078]
[1741455218182,2.386,2216.2,2215.8,3.93006]
[1741455218388,6.56623,2216.2,2215.8,3.93006]
[1741455218888,3.2078,2215.9,2215.5,0.72914987]
[1741455219198,2.386,2215.8,2215.5,0.00676987]
[1741455219390,2.386,2215.8,2215.7,0.72232]
[1741455219997,6.56623,2216.1,2215.5,3.21456987]
[1741455220195,2.386,2216.1,2216.0,0.72222]
[1741455220383,3.7101,2216.6,2215.8,3.2078]
[1741455220590,1.3241,2216.6,2216.4,0.72207]
[1741455220891,1.3241,2216.6,2216.2,3.2078]
[1741455221092,1.3241,2216.6,2216.3,0.7221]
[1741455221290,1.3241,2216.6,2216.3,0.72212]
[1741455221688,1.3241,2216.6,2216.2,3.92995]
[1741455222591,1.3241,2216.6,2216.3,0.72211]
[1741455222791,1.3241,2216.6,2216.2,3.92994]
[1741455223192,1.3241,2216.6,2216.2,3.2078]
[1741455223899,4.18023,2217.0,2216.9,0.72193]
[1741455224096,20.825,2217.2,2217.0,0.72189]
[1741455224298,20.825,2217.2,2216.9,3.92971]
[1741455224600,20.825,2217.2,2216.9,3.2078]
[1741455224900,20.825,2217.2,2216.8,0.72194]
[1741455225101,20.825,2217.2,2216.7,0.00676987]
[1741455225298,3.2078,2217.4,2216.7,0.00676987]
[1741455225499,24.0208,2218.1,2217.3,1.8045]
[1741455225801,2.385,2218.3,2218.0,0.72154]
[1741455225998,2.385,2218.3,2218.2,0.7215]
[1741455226194,22.8024,2218.9,2218.1,3.2078]
[1741455226195,1.3934,2218.9,2218.1,3.2078]
[1741455226391,4.90143,2219.2,2218.4,0.72141]
[1741455226596,3.2078,2219.0,2218.0,3.2078]
[1741455226798,3.2078,2219.0,2218.4,0.72143]
[1741455227000,3.2078,2219.0,2217.9,0.00676987]
[1741455227001,1.3934,2219.2,2218.6,3.2078]
[1741455227196,3.2078,2219.3,2218.9,3.2078]
[1741455227398,3.2078,2219.3,2218.2,3.2078]
[1741455227598,0.72124,2219.1,2218.3,0.72145]
[1741455227798,2.385,2219.0,2218.3,0.72146]
[1741455227997,2.385,2219.0,2218.2,3.2078]
[1741455227998,3.2078,2218.9,2218.2,3.2078]